bitfinex/quotes_ETHUSD_20250903
["timestamp","ask_amount","ask_price","bid_price","bid_amount"]
[1756893205381,0.00020001,4349.3,4349.2,15.35800076]
[1756893206299,0.00020001,4349.3,4349.2,16.98594265]
[1756893210188,0.00020001,4349.3,4349.2,15.35800076]
[1756893212384,0.00020001,4349.3,4349.2,15.82160076]
[1756893212895,0.00020001,4349.3,4349.2,20.06160076]
[1756893213772,0.00020001,4349.3,4349.2,22.0893167]
[1756893213983,0.00020001,4349.3,4349.2,25.5149167]
[1756893214165,0.00020001,4349.3,4349.2,25.9902167]
[1756893214589,0.00020001,4349.3,4349.2,20.8414167]
[1756893214788,0.09920001,4349.3,4349.2,14.57640076]
[1756893215707,0.09920001,4349.3,4349.2,17.57640076]
[1756893215910,0.55910001,4349.3,4349.2,10.45447342]
[1756893216071,0.55910001,4349.3,4349.2,14.34647342]
[1756893216704,0.09920001,4349.3,4349.2,14.34647342]
[1756893217080,0.09840001,4349.3,4349.2,14.34647342]
[1756893217866,0.09840001,4349.3,4349.2,10.10647342]
[1756893218066,0.09840001,4349.3,4349.2,11.89995511]
[1756893218810,0.09840001,4349.3,4349.2,16.13995511]
[1756893219112,0.09840001,4349.3,4349.2,10.10647342]
[1756893219609,0.55830001,4349.3,4349.2,10.10647342]
[1756893220011,0.09840001,4349.3,4349.2,10.10647342]
[1756893220796,0.55830001,4349.3,4349.2,10.10647342]
[1756893220988,0.55930001,4349.3,4349.2,10.10647342]
[1756893221163,0.09940001,4349.3,4349.2,10.10647342]
[1756893222073,0.09940001,4349.3,4349.2,6.21447342]
[1756893222074,0.30980001,4349.3,4349.2,6.21447342]
[1756893222267,0.76970001,4349.3,4349.2,10.10647342]
[1756893222696,0.55930001,4349.3,4349.2,10.10647342]
[1756893225696,0.09940001,4349.3,4349.2,10.10647342]
[1756893225889,0.09940001,4349.3,4349.2,14.34647342]
[1756893226519,0.09940001,4349.3,4349.2,10.10647342]
[1756893227172,0.09940001,4349.3,4349.2,6.21447342]
[1756893227173,0.55930001,4349.3,4349.2,6.21447342]
[1756893227378,0.55930001,4349.3,4349.2,10.10547342]
[1756893227574,0.09940001,4349.3,4349.2,10.10547342]
[1756893229905,0.001,4349.3,4349.2,10.10547342]
[1756893230636,0.1024,4349.3,4349.2,10.10547342]
[1756893234420,0.001,4349.3,4349.2,13.00785511]
[1756893237273,1e-08,4349.3,4349.2,13.00785511]
[1756893238368,1e-08,4349.3,4349.2,13.47085511]
[1756893238663,1e-08,4349.3,4349.2,17.71085511]
[1756893239947,1e-08,4349.3,4349.2,20.71085511]
[1756893240658,1e-08,4349.8,4349.7,2.29900912]
[1756893240965,1e-08,4349.8,4349.7,17.22382597]
[1756893241260,1e-08,4349.8,4349.7,18.95152597]
[1756893241451,1e-08,4349.8,4349.7,22.75152597]
[1756893241654,0.00020001,4350.2,4350.1,2.29879772]
[1756893241956,0.00020001,4350.2,4350.1,10.42779772]
[1756893242163,2.41305043,4351.9,4351.7,2.29795252]
[1756893242164,0.1152,4351.9,4351.7,2.29795252]
[1756893242351,0.35973912,4353.3,4351.7,7.95395252]
[1756893242352,0.2326,4352.8,4351.7,7.95395252]
[1756893242542,0.1416,4351.8,4351.7,7.95395252]
[1756893242743,0.1416,4351.8,4351.7,11.75395252]
[1756893243266,0.3522,4351.8,4351.7,3.8]
[1756893243463,0.8115,4351.8,4351.7,7.689]
[1756893243634,0.8115,4351.8,4351.7,7.85963769]
[1756893243827,0.8115,4351.8,4351.7,10.15759021]
[1756893244057,0.6009,4351.8,4351.7,10.15759021]
[1756893244243,0.6009,4351.8,4351.7,7.85963769]
[1756893245069,0.8115,4351.8,4351.7,7.85963769]
[1756893245573,0.8115,4351.8,4351.7,3.97063769]
[1756893245753,0.8115,4351.8,4351.7,7.85863769]
[1756893246469,0.6009,4351.8,4351.7,6.26859021]
[1756893246772,0.1416,4351.8,4351.7,6.26859021]
[1756893248462,0.1416,4351.8,4351.7,6.26939021]
[1756893248669,0.1416,4351.8,4351.7,3.97143769]
[1756893248866,0.6009,4351.8,4351.7,7.85943769]
[1756893249039,0.1416,4351.8,4351.7,6.26939021]
[1756893249239,0.1416,4351.8,4351.7,3.97143769]
[1756893249977,0.1416,4351.8,4351.7,6.26939021]
[1756893251476,0.1416,4351.8,4351.7,0.17143769]
[1756893252246,0.6009,4351.8,4351.7,0.28663769]
[1756893252847,0.1416,4351.8,4351.7,0.28663769]
[1756893253344,0.1416,4351.8,4351.7,2.58459021]
[1756893253772,0.1416,4351.8,4351.7,2.58379021]
[1756893254160,0.1416,4351.8,4351.7,0.28583769]
[1756893254583,0.1416,4351.8,4351.7,2.58379021]
[1756893255106,0.0432,4351.8,4351.7,2.58379021]
[1756893255398,0.0432,4351.8,4351.7,6.38379021]
[1756893255793,0.0432,4351.8,4351.7,7.64849021]
[1756893256162,0.0432,4351.8,4351.7,7.17599021]
[1756893256561,0.0432,4351.8,4351.7,6.68669021]
[1756893256760,0.0432,4351.8,4351.7,13.27194497]
[1756893256990,0.0432,4351.8,4351.7,9.03194497]
[1756893257599,0.0432,4351.8,4351.7,9.12401614]
[1756893258466,0.0442,4351.8,4351.7,9.12401614]
[1756893258702,0.0442,4351.8,4351.7,9.22401614]
[1756893259303,0.0442,4351.8,4351.7,14.06793997]
[1756893259467,1e-08,4351.8,4351.7,14.06793997]
[1756893260385,1e-08,4351.8,4351.7,13.89730228]
[1756893260973,1e-08,4351.8,4351.7,17.78430228]
[1756893263184,1e-08,4351.8,4351.7,9.05337845]
[1756893263380,1e-08,4351.8,4351.7,12.94037845]
[1756893264808,0.38680681,4353.3,4352.9,2.29727659]
[1756893265101,0.38680681,4353.3,4353.2,0.1152]
[1756893265403,0.38680681,4353.3,4353.2,4.0012]
[1756893265717,0.48520681,4353.3,4353.2,4.0012]
[1756893266074,0.48440681,4353.3,4353.2,4.0012]
[1756893266986,10.62543858,4353.3,4353.2,0.1152]
[1756893267181,10.13117087,4353.3,4353.2,4.0012]
[1756893267586,10.13117087,4353.3,4353.2,3.886]
[1756893268022,9.92057087,4353.3,4353.2,3.886]
[1756893268179,8.32833064,4353.3,4353.2,3.886]
[1756893269313,10.62543858,4353.3,4353.2,3.886]
[1756893269484,2.29725421,4353.1,4352.4,1.767]
[1756893269684,4.84392383,4352.8,4352.6,0.1152]
[1756893269889,4.84392383,4352.8,4352.7,3.886]
[1756893270204,5.25112383,4352.8,4352.7,3.886]
[1756893270804,0.2869,4352.8,4352.7,3.886]
[1756893272128,5.34142383,4352.8,4351.7,0.17039145]
[1756893272311,2.2975424,4352.5,4351.5,3.886]
[1756893272515,5.05452383,4352.4,4351.6,2.29800533]
[1756893272709,3.0,4352.5,4351.8,2.29786266]
[1756893272911,0.386,4352.8,4352.4,0.3004]
[1756893272912,0.69071188,4352.8,4352.4,0.3004]
[1756893273094,0.69071188,4352.8,4352.5,3.886]
[1756893273300,3.0,4353.4,4352.7,2.29742458]
[1756893273518,3.0,4353.4,4352.8,3.886]
[1756893273815,0.0222,4352.9,4352.8,3.886]
[1756893274520,0.0222,4352.9,4352.8,6.1833718]
[1756893275092,3.0,4353.4,4352.8,6.1833718]
[1756893275093,3.0,4353.4,4352.9,2.29731465]
[1756893275423,0.0222,4353.0,4352.8,3.886]
[1756893275996,0.0222,4353.0,4352.9,2.29731902]
[1756893276526,0.0222,4353.0,4352.8,3.886]
[1756893276823,0.0222,4353.0,4352.8,6.18333434]
[1756893276988,0.0222,4353.0,4352.8,7.686]
[1756893277195,0.0222,4353.0,4352.8,9.98336696]
[1756893277391,0.0222,4353.0,4352.9,2.29731902]
[1756893277589,4.84392383,4353.2,4352.9,2.29730338]
[1756893277815,4.84392383,4353.2,4353.0,6.18326287]
[1756893277989,0.0258,4353.1,4353.0,3.886]
[1756893278196,0.001,4353.4,4353.1,0.3004]
[1756893278417,0.001,4353.4,4353.0,6.18321802]
[1756893278722,0.001,4353.4,4353.1,2.29721183]
[1756893279024,0.001,4353.4,4352.8,6.09735566]
[1756893279025,0.0222,4353.1,4352.8,3.8]
[1756893279224,4.86612383,4353.1,4353.0,3.886]
[1756893279439,4.86612383,4353.1,4352.9,3.886]
[1756893279598,5.24842383,4353.1,4352.8,3.8]
[1756893279792,4.86612383,4353.1,4352.5,4.24]
[1756893279997,4.86612383,4353.1,4352.7,3.886]
[1756893280215,5.24842383,4353.1,4352.7,3.886]
[1756893280744,5.24842383,4353.1,4352.7,6.18342307]
[1756893281924,5.24842383,4353.1,4352.8,2.29736153]
[1756893282116,5.24842383,4353.1,4352.6,2.29746091]
[1756893282317,5.24842383,4353.1,4352.7,6.29762002]
[1756893282549,5.24842383,4353.1,4352.7,4.0002]
[1756893283033,0.4045,4353.1,4352.7,6.29760396]
[1756893283195,4.84392383,4353.0,4352.7,4.0002]
[1756893283404,4.95912383,4353.3,4352.9,2.29731902]
[1756893283801,4.95912383,4353.3,4352.8,2.29736146]
[1756893284122,4.84392383,4353.0,4352.7,6.29762236]
[1756893284326,4.84392383,4353.2,4352.8,2.29732874]
[1756893284551,4.84392383,4353.2,4352.9,2.29731473]
[1756893289037,0.0222,4353.0,4352.7,4.0002]
[1756893289257,0.0222,4353.0,4352.8,2.29736896]
[1756893289425,0.0222,4353.0,4352.7,4.0002]
[1756893289649,4.84392383,4352.9,4352.7,4.0002]
[1756893289828,0.0258,4352.8,4352.7,4.0002]
[1756893290278,0.0258,4352.8,4352.7,6.29762458]
[1756893290449,0.0258,4352.8,4352.7,2.41262458]
[1756893290771,0.025,4352.8,4352.7,2.41262458]
[1756893290940,4.84392383,4352.9,4352.7,2.41262458]
[1756893291137,4.84392383,4352.9,4352.8,2.2973718]
[1756893291331,0.6905513,4353.0,4352.9,2.29731902]
[1756893292357,0.6905513,4353.0,4352.9,2.59771902]
[1756893292557,0.001,4353.4,4352.9,1.3206]
[1756893292785,0.001,4353.4,4353.3,2.29710794]
[1756893293162,0.001,4353.4,4353.3,2.59750794]
[1756893294059,0.001,4353.4,4353.3,0.3004]
[1756893294398,0.001,4353.4,4353.3,3.05840794]
[1756893294601,0.001,4353.4,4353.2,6.29734111]
[1756893294783,0.001,4353.4,4353.2,4.0002]
[1756893294957,0.001,4353.4,4353.3,2.29710794]
[1756893295292,0.001,4353.4,4353.3,3.50250794]
[1756893295992,0.001,4353.4,4353.3,3.05840794]
[1756893296292,0.001,4353.4,4353.3,3.50250794]
[1756893296469,0.001,4353.4,4353.3,4.48249922]
[1756893296669,0.022,4353.8,4353.7,2.29689689]
[1756893297003,0.022,4353.8,4353.7,11.30249689]
[1756893298063,0.022,4353.8,4353.7,7.41749689]
[1756893298264,0.022,4353.8,4353.7,12.44954343]
[1756893298888,0.022,4353.8,4353.7,12.33434343]
[1756893303575,0.001,4354.2,4354.1,2.29668588]
[1756893303809,0.001,4354.2,4354.1,6.18068588]
[1756893304109,0.001,4354.2,4354.1,7.41058588]
[1756893304314,0.001,4354.2,4354.1,12.66571267]
[1756893305302,2.29564688,4356.1,4354.1,12.66571267]
[1756893305303,4.84392383,4356.3,4355.6,2.29589493]
[1756893305600,0.69005254,4356.0,4355.7,3.884]
[1756893305833,3.0,4356.3,4355.8,3.884]
[1756893306032,4.08439238,4356.3,4355.8,3.884]
[1756893306333,3.69002239,4356.2,4355.8,3.884]
[1756893306511,0.0214,4355.9,4355.8,3.884]
[1756893306705,0.0214,4355.9,4355.2,2.29610264]
[1756893307036,4.86532383,4355.9,4355.1,2.2543]
[1756893307243,0.0214,4355.9,4355.2,4.313]
[1756893307413,3.0,4356.1,4355.3,6.58435308]
[1756893307614,3.0,4356.1,4355.4,3.883]
[1756893307815,4.4594641,4356.1,4355.4,3.883]
[1756893308216,6.75510054,4356.1,4355.5,3.8]
[1756893308529,6.75510054,4356.1,4355.6,3.883]
[1756893308734,0.0214,4355.7,4355.6,3.883]
[1756893309044,1.4594641,4356.1,4355.6,3.883]
[1756893309245,1.4594641,4356.1,4355.6,11.32318471]
[1756893309246,3.0,4356.1,4355.6,11.32318471]
[1756893309430,3.0,4356.1,4355.9,0.1144]
[1756893309745,3.0,4356.1,4355.9,3.9974]
[1756893310044,5.29553379,4356.3,4355.9,3.9974]
[1756893310213,4.84392383,4356.2,4355.9,3.9974]
[1756893310541,3.0,4356.1,4355.9,3.9974]
[1756893311350,0.0214,4356.0,4355.9,3.9974]
[1756893311850,3.0,4356.1,4355.9,3.9974]
[1756893312955,0.0214,4356.0,4355.9,3.9974]
[1756893313156,0.0214,4356.0,4355.9,3.9964]
[1756893313364,0.0214,4356.0,4355.6,7.682]
[1756893313365,1.41898861,4356.0,4355.6,7.682]
[1756893313643,4.84392383,4355.8,4355.6,3.8]
[1756893313944,2.29536582,4356.7,4355.7,5.1119]
[1756893314109,0.69003032,4356.3,4356.2,2.29557871]
[1756893314314,0.69003032,4356.3,4356.2,7.40747871]
[1756893314711,0.022,4356.8,4356.3,2.29550864]
[1756893314953,4.84392383,4356.6,4356.2,1.2299]
[1756893315247,4.84392383,4356.6,4356.4,3.882]
[1756893315425,0.0212,4356.8,4356.4,3.882]
[1756893315622,4.84392383,4356.7,4356.4,3.882]
[1756893316132,4.84392383,4356.7,4356.2,3.882]
[1756893316133,0.0214,4356.5,4356.2,3.882]
[1756893316532,4.86532383,4356.5,4356.2,3.882]
[1756893317547,0.7395847,4356.5,4356.3,3.882]
[1756893317748,0.7395847,4356.5,4356.2,3.882]
[1756893318725,0.3815,4356.4,4356.2,3.882]
[1756893318923,0.025,4356.3,4356.2,3.882]
[1756893319141,0.025,4356.3,4356.0,3.882]
[1756893319717,2.32053518,4356.3,4356.0,3.882]
[1756893319944,2.3205458,4356.3,4356.0,3.882]
[1756893320746,2.32053945,4356.3,4356.0,3.882]
[1756893321118,2.29560367,4356.2,4355.9,3.882]
[1756893321314,0.0285,4356.0,4355.9,3.882]
[1756893321518,0.0285,4356.0,4355.8,0.022]
[1756893322527,1.19321018,4356.3,4355.9,0.3116]
[1756893322855,1.19321018,4356.3,4355.9,1.2299]
[1756893323548,9.89562136,4356.5,4355.9,0.7999]
[1756893323929,3.7181847,4356.5,4356.0,4.4264]
[1756893324139,4.40820074,4356.5,4356.1,0.9183]
[1756893324641,0.69001604,4356.5,4356.1,0.43]
[1756893324819,0.0212,4356.8,4356.4,0.3116]
[1756893325025,0.71117319,4356.8,4356.4,0.3116]
[1756893325225,0.71117319,4356.8,4356.4,0.7999]
[1756893326554,0.71117319,4356.8,4356.4,1.2299]
[1756893326749,0.0212,4356.8,4356.5,0.9183]
[1756893327059,0.0212,4356.8,4356.7,0.3116]
[1756893327557,0.0212,4356.8,4356.6,1.0327]
[1756893327761,0.0212,4356.8,4356.6,0.6027]
[1756893328225,0.0212,4356.8,4356.7,0.3116]
[1756893328965,0.0212,4356.8,4356.6,0.1144]
[1756893329355,0.0212,4356.8,4356.7,1.2299]
[1756893330826,0.0212,4356.8,4356.7,0.3116]
[1756893331149,0.0212,4356.8,4356.7,1.2528]
[1756893332135,0.0212,4356.8,4356.6,3.9144]
[1756893332335,0.0212,4356.8,4356.7,0.3116]
[1756893332549,0.0212,4356.8,4356.7,1.2528]
[1756893334353,0.0212,4356.8,4356.7,0.7779]
[1756893334757,0.0212,4356.8,4356.7,0.3116]
[1756893335130,0.0212,4356.8,4356.7,0.7779]
[1756893335329,0.0212,4356.8,4356.7,1.2528]
[1756893336060,0.0212,4356.8,4356.7,0.7779]
[1756893337276,0.0212,4356.8,4356.7,0.3116]
[1756893337441,0.0212,4356.8,4356.6,7.7954]
[1756893337637,0.62182347,4356.8,4356.6,3.9144]
[1756893337851,0.0214,4356.7,4356.6,3.8]
[1756893338182,0.0214,4356.7,4356.1,3.885]
[1756893338390,7.21979135,4356.8,4356.3,2.29548585]
[1756893338671,3.9022,4356.8,4356.4,0.9412]
[1756893338870,0.0214,4356.5,4356.3,0.1144]
[1756893339069,0.0214,4356.5,4356.3,3.9954]
[1756893339374,0.0214,4356.5,4356.3,0.1144]
[1756893339570,0.68996685,4356.7,4356.3,0.1144]
[1756893339867,10.74032977,4356.8,4356.4,1.2528]
[1756893340035,11.43028234,4356.8,4356.4,1.2528]
[1756893340439,11.43028234,4356.8,4356.4,0.7779]
[1756893340671,11.43028234,4356.8,4356.4,0.3116]
[1756893340971,0.0206,4356.5,4356.3,0.1144]
[1756893341640,1.38399109,4356.7,4356.4,1.2528]
[1756893341870,0.0212,4356.8,4356.7,2.29531526]
[1756893342200,0.0212,4356.8,4356.7,3.66251526]
[1756893342369,0.3346,4356.8,4356.7,0.1144]
[1756893342571,0.0212,4356.8,4356.7,0.8923]
[1756893342871,0.0212,4356.8,4356.7,1.3672]
[1756893343773,0.0212,4356.8,4356.7,7.54251526]
[1756893344071,0.0212,4356.8,4356.7,5.2472]
[1756893344541,0.0212,4356.8,4356.7,7.54251526]
[1756893345561,0.0212,4356.8,4356.7,5.2472]
[1756893345950,0.0212,4356.8,4356.7,7.54251526]
[1756893346386,0.0212,4356.8,4356.7,8.52630879]
[1756893346549,0.0212,4356.8,4356.7,4.64630879]
[1756893346852,0.0212,4356.8,4356.7,8.52630879]
[1756893347182,0.0212,4356.8,4356.7,12.32630879]
[1756893347996,1e-08,4356.8,4356.7,11.44630879]
[1756893348149,0.044,4357.8,4357.7,2.29478853]
[1756893348497,0.044,4357.8,4357.7,8.39875375]
[1756893348698,0.044,4357.8,4357.7,9.65155375]
[1756893349091,0.044,4357.8,4357.7,5.77155375]
[1756893349398,0.044,4357.8,4357.7,9.19258853]
[1756893349789,0.044,4357.8,4357.7,12.99258853]
[1756893352581,0.044,4357.8,4357.7,9.11258853]
[1756893352787,0.044,4357.8,4357.7,12.99158853]
[1756893357586,0.044,4357.8,4357.7,12.99258853]
[1756893357902,0.044,4357.8,4357.7,14.52133565]
[1756893358107,0.044,4357.8,4357.7,14.63573565]
[1756893358810,1e-08,4357.8,4357.7,18.42773565]
[1756893359310,1e-08,4357.8,4357.7,14.54773565]
[1756893359481,1e-08,4357.8,4357.7,18.42773565]
[1756893359675,1e-08,4357.8,4357.7,17.63673565]
[1756893360386,1e-08,4357.8,4357.7,13.75573565]
[1756893360586,1e-08,4357.8,4357.7,17.63673565]
[1756893361214,1e-08,4357.8,4357.7,13.75573565]
[1756893361412,1e-08,4357.8,4357.7,17.63673565]
[1756893361600,1e-08,4357.8,4357.7,17.16183565]
[1756893361811,1e-08,4357.8,4357.7,13.72813565]
[1756893362006,1e-08,4357.8,4357.7,17.60913565]
[1756893362507,1e-08,4357.8,4357.7,13.72813565]
[1756893362689,1e-08,4357.8,4357.7,17.60813565]
[1756893363010,0.40130001,4357.8,4357.7,0.1144]
[1756893363177,0.23220001,4357.8,4357.7,2.468]
[1756893363377,0.02060001,4357.8,4357.7,0.1144]
[1756893363606,0.40130001,4357.8,4357.7,3.9974]
[1756893363804,0.02060001,4357.8,4357.7,3.9974]
[1756893364005,0.01980001,4357.8,4357.7,3.9974]
[1756893364210,0.40050001,4357.8,4357.7,0.1144]
[1756893364408,0.61210001,4357.8,4357.7,4.0074]
[1756893365513,0.61210001,4357.8,4357.7,3.894]
[1756893366317,0.01980001,4357.8,4357.7,3.894]
[1756893366518,0.1144,4358.2,4357.7,3.894]
[1756893366812,0.3836,4358.2,4358.0,0.1144]
[1756893367114,2.60817791,4358.1,4358.0,3.716]
[1756893367317,4.103643,4358.1,4357.9,3.896]
[1756893367489,3.0,4357.9,4357.3,3.897]
[1756893367689,0.3136,4357.4,4357.2,3.897]
[1756893367890,0.4027,4357.4,4357.2,3.897]
[1756893368089,0.3136,4357.4,4357.2,3.897]
[1756893368809,2.60856138,4357.4,4357.3,3.896]
[1756893369008,1.39473658,4357.4,4357.0,1.764]
[1756893369321,5.90795343,4357.1,4356.8,0.022]
[1756893369624,2.29520989,4356.9,4356.8,0.022]
[1756893369822,2.60650989,4356.9,4356.8,0.022]
[1756893370026,2.90950989,4356.9,4356.8,0.022]
[1756893370320,4.32076715,4356.9,4356.8,0.022]
[1756893371592,8.11276715,4356.9,4356.8,0.022]
[1756893372106,14.02072058,4356.9,4356.8,0.022]
[1756893372487,14.02072058,4356.9,4356.8,0.026]
[1756893373086,11.00516715,4356.9,4356.8,0.026]
[1756893373291,3.3113,4356.9,4356.8,0.026]
[1756893373490,3.0198,4356.9,4356.8,0.026]
[1756893373713,4.764,4357.7,4356.8,1.2651]
[1756893373912,3.897,4357.8,4357.1,2.29507647]
[1756893374386,3.897,4357.8,4356.9,2.29520989]
[1756893374692,0.68985737,4357.7,4357.0,2.2951388]
[1756893375503,2.98466481,4357.7,4356.9,2.29520413]
[1756893375830,2.98466481,4357.7,4356.8,4.8502]
[1756893375831,2.2948627,4357.6,4356.8,4.8502]
[1756893376196,2.98465231,4357.7,4357.0,2.29514458]
[1756893376390,0.68985737,4357.7,4357.0,2.29514458]
[1756893376628,8.89261315,4357.7,4356.8,4.8502]
[1756893376928,8.89261315,4357.7,4356.9,2.29516536]
[1756893377329,8.89261315,4357.7,4357.0,2.29514316]
[1756893377529,4.83429466,4357.5,4357.1,2.29508745]
[1756893377700,0.3136,4357.2,4357.0,0.1144]
[1756893378205,4.83429466,4357.5,4357.2,2.29504597]
[1756893378410,4.83429466,4357.5,4357.0,0.1144]
[1756893378724,4.83429466,4357.5,4357.1,3.2222662]
[1756893378921,4.83429466,4357.5,4357.1,0.9272]
[1756893379131,4.83429466,4357.5,4357.2,2.29503752]
[1756893379306,4.83429466,4357.5,4357.2,2.29505074]
[1756893379509,4.83429466,4357.8,4357.2,3.22225074]
[1756893379896,5.5241092,4357.8,4357.2,3.22225074]
[1756893380231,2.29401597,4359.2,4357.7,2.72108853]
[1756893380232,4.83429466,4358.4,4357.7,2.72108853]
[1756893380415,3.0,4358.3,4357.7,2.72108853]
[1756893380931,0.1144,4358.5,4357.7,0.9062]
[1756893381232,4.83429466,4358.4,4357.9,2.29464088]
[1756893381601,4.83429466,4358.4,4358.0,2.29462688]
[1756893382122,4.83429466,4358.4,4357.9,2.29467869]
[1756893382628,4.83429466,4358.4,4357.8,6.19272135]
[1756893383004,7.12871719,4358.4,4357.8,3.898]
[1756893383208,4.83429466,4358.4,4357.8,3.898]
[1756893383736,0.0198,4357.9,4357.8,3.895]
[1756893383901,4.94869466,4358.1,4357.8,3.895]
[1756893384234,0.0234,4357.9,4357.8,3.895]
[1756893385445,0.0234,4357.9,4357.5,0.1144]
[1756893385597,4.83429466,4357.8,4357.7,3.897]
[1756893385802,4.86119466,4357.8,4357.7,3.897]
[1756893386535,4.83429466,4357.8,4357.7,6.19178853]
[1756893386838,0.0198,4357.8,4357.5,0.1144]
[1756893387001,4.83429466,4357.6,4357.5,3.894]
[1756893387196,3.1144,4358.1,4357.5,3.894]
[1756893387197,4.83429466,4357.9,4357.6,2.29483038]
[1756893387402,4.83429466,4357.9,4357.7,2.29477773]
[1756893387711,4.83429466,4357.9,4357.5,6.18888132]
[1756893387920,4.83429466,4357.9,4357.5,3.894]
[1756893388428,4.83349466,4357.9,4357.6,2.29483461]
[1756893388734,0.0198,4357.6,4357.5,3.894]
[1756893388907,4.83349466,4357.9,4357.5,3.894]
[1756893389227,0.0234,4357.6,4357.5,3.894]
[1756893389431,4.85769466,4357.6,4357.2,0.1144]
[1756893389635,4.97209466,4357.6,4357.2,3.892]
[1756893390003,4.83429466,4357.3,4357.2,3.892]
[1756893390616,4.86119466,4357.3,4357.1,1.765]
[1756893390825,4.86119466,4357.3,4357.2,3.892]
[1756893391018,6.16306862,4357.3,4357.1,1.765]
[1756893392037,7.960555,4357.3,4357.0,0.004]
[1756893392254,6.08710454,4357.1,4357.0,0.004]
[1756893392438,3.792,4357.1,4357.0,0.004]
[1756893392624,10.22310454,4357.1,4357.0,0.004]
[1756893392824,6.69860454,4357.1,4357.0,0.004]
[1756893393134,11.9976776,4357.1,4357.0,0.004]
[1756893393727,8.1046776,4357.1,4357.0,0.004]
[1756893394043,11.7860776,4357.1,4357.0,0.004]
[1756893394642,11.9976776,4357.1,4357.0,0.004]
[1756893395256,8.44387306,4357.1,4357.0,0.004]
[1756893395456,11.87209466,4357.1,4357.0,0.004]
[1756893395655,7.94869466,4357.1,4357.0,0.004]
[1756893395950,3.1144,4357.1,4357.0,1.1971]
[1756893396242,0.1144,4357.1,4357.0,3.49225721]
[1756893396410,3.1144,4357.6,4357.1,2.29510454]
[1756893396607,0.68985579,4357.5,4357.3,2.29496281]
[1756893396808,0.68985579,4357.5,4357.4,0.4788]
[1756893397037,0.68985579,4357.5,4357.4,0.7641]
[1756893397255,0.68985579,4357.5,4357.4,1.1931]
[1756893398044,3.0,4358.0,4357.5,2.2948542]
[1756893398250,1.765,4358.2,4357.6,2.77363235]
[1756893398411,0.68981613,4357.8,4357.6,2.77363235]
[1756893398614,0.0198,4357.7,4357.2,4.4882]
[1756893398814,4.83429466,4357.6,4357.2,3.895]
[1756893399151,4.83429466,4357.6,4357.5,3.05899386]
[1756893399352,4.83429466,4357.6,4357.5,3.48799386]
[1756893400052,4.83429466,4357.6,4357.5,1.1931]
[1756893400258,5.14779466,4357.6,4357.4,3.894]
[1756893400454,5.14779466,4357.6,4357.5,3.05899386]
[1756893400455,4.83429466,4357.6,4357.5,3.05899386]
[1756893400616,5.14779466,4357.6,4357.4,3.894]
[1756893401141,0.80421613,4357.8,4357.6,2.29480293]
[1756893401341,3.80421613,4357.8,4357.5,3.48797963]
[1756893401547,3.80421613,4357.8,4357.6,0.429]
[1756893402051,3.80421613,4357.8,4357.5,2.77367963]
[1756893402052,0.80421613,4357.8,4357.5,2.77367963]
[1756893402262,3.80421613,4357.8,4357.7,0.2853]
[1756893402452,3.80421613,4357.8,4357.6,2.77363745]
[1756893402845,3.80421613,4357.8,4357.5,2.29489316]
[1756893403220,3.80421613,4357.8,4357.6,2.2948343]
[1756893403449,3.80421613,4357.8,4357.7,3.05888853]
[1756893403633,3.80421613,4357.8,4357.7,0.7641]
[1756893403952,3.82401613,4357.8,4357.5,2.29488965]
[1756893404149,3.82401613,4357.8,4357.3,4.8008]
[1756893404355,3.82401613,4357.8,4357.5,2.29488775]
[1756893404944,0.82401613,4357.8,4357.4,2.29493569]
[1756893405135,4.83429466,4357.7,4357.4,2.29493569]
[1756893406355,0.80421613,4357.8,4357.6,2.58014073]
[1756893406558,0.80421613,4357.8,4357.7,3.20258853]
[1756893406852,0.80421613,4357.8,4357.7,0.9078]
[1756893407058,0.80421613,4357.8,4357.7,1.1931]
[1756893407353,0.80421613,4357.8,4357.7,3.48788853]
[1756893408142,0.80421613,4357.8,4357.7,1.1931]
[1756893408931,0.80421613,4357.8,4357.5,6.18487901]
[1756893409156,0.80421613,4357.8,4357.6,2.72384119]
[1756893409157,4.83429466,4357.7,4357.6,2.72384119]
[1756893409330,0.80421613,4357.8,4357.6,3.00914119]
[1756893409540,4.83429466,4357.7,4357.6,1.1931]
[1756893409857,4.83429466,4357.7,4357.6,0.2853]
[1756893410065,4.83429466,4357.7,4357.5,3.894]
[1756893410264,4.83429466,4357.7,4357.6,3.886]
[1756893410465,4.85409466,4357.7,4357.6,3.886]
[1756893410965,4.85409466,4357.7,4357.5,0.004]
[1756893411260,0.0198,4357.7,4357.5,3.89]
[1756893411466,4.83429466,4357.6,4357.5,3.89]
[1756893411663,4.85769466,4357.6,4357.5,3.89]
[1756893412451,5.35490413,4357.6,4357.5,0.004]
[1756893413055,5.35410413,4357.6,4357.5,0.004]
[1756893416767,5.54318376,4357.6,4357.5,0.004]
[1756893417475,5.83688376,4357.6,4357.5,0.004]
[1756893418278,6.62888376,4357.6,4357.5,0.004]
[1756893418476,7.92970848,4357.6,4357.5,0.004]
[1756893418677,18.35964433,4357.6,4357.5,0.004]
[1756893418979,6.08710454,4357.1,4357.0,0.004]
[1756893419177,14.8033992,4357.1,4357.0,0.004]
[1756893419350,15.1146992,4357.1,4357.0,0.004]
[1756893419684,13.06568166,4357.1,4357.0,0.004]
[1756893419981,17.15448166,4357.1,4357.0,0.004]
[1756893420342,21.98877632,4357.1,4357.0,0.004]
[1756893420568,22.20037632,4357.1,4357.0,0.004]
[1756893420977,17.06208166,4357.1,4357.0,0.004]
[1756893421477,21.98777632,4357.1,4357.0,0.004]
[1756893421783,6.08720989,4356.9,4356.8,0.026]
[1756893422073,11.39663706,4356.9,4356.8,0.026]
[1756893422269,11.68493706,4356.9,4356.8,0.026]
[1756893422473,12.01063706,4356.9,4356.8,0.026]
[1756893423203,2.29557871,4356.2,4356.1,0.004]
[1756893423476,14.80487337,4356.2,4356.1,0.004]